[Event "EICC 2025"]
[Site "Eforie-Nord"]
[Date "2025.03.17"]
[Round "3.23"]
[White "Gubin, Dmitrii"]
[Black "Lashkin, Jegor"]
[Result "0-1"]
[Annotator "RC"]
[ECO "A13"]
[WhiteElo "2147"]
[BlackElo "2517"]
[PlyCount "156"]
[EventDate "2025.03.14"]
[EventType "swiss"]
[EventCountry "ROU"]
[SourceTitle "playchess.com"]
[Source "ChessBase"]
[SourceQuality "1"]
[TimeControl "40/5400+30:1800+30"]

1. c4 {[%emt 0:01:37]} e6 {[%emt 0:00:21]} 2. g3 {[%emt 0:00:14]} d5 {[%emt 0:00:12]} 3. Bg2 {[%emt 0:00:10]} d4 {[%emt 0:00:22]} 4. Nf3 {[%emt 0:00:10]} c5 {[%emt 0:00:12]} 5. O-O {[%emt 0:00:12]} Ne7 {[%emt 0:00:13]} 6. e3 {[%emt 0:04:07]} Nec6 {[%emt 0:00:14]} 7. exd4 {[%emt 0:00:11]} cxd4 {[%emt 0:00:06]} 8. d3 {[%emt 0:00:14]} Be7 {[%emt 0:00:30]} 9. Na3 {[%emt 0:02:20]} O-O {[%emt 0:00:27]} 10. Nc2 {[%emt 0:00:11]} a5 {[%emt 0:00:06]} 11. a3 {[%emt 0:09:00]} e5 {[%emt 0:02:16]} 12. Rb1 {[%emt 0:03:43]} a4 {[%emt 0:00:50]} 13. Nb4 {[%emt 0:05:47]} Re8 {[%emt 0:25:01]} 14. Re1 {[%emt 0:12:02]} Nxb4 {[%emt 0:14:47]} 15. axb4 {[%emt 0:00:20]} Bxb4 {[%emt 0:00:15]} 16. Rxe5 {[%emt 0:00:10]} Rxe5 {[%emt 0:09:12]} 17. Nxe5 {[%emt 0:00:07]} Qe7 {[%emt 0:01:37]} 18. Bd2 {[%emt 0:09:09]} Bd6 {[%emt 0:06:51]} 19. f4 {[%emt 0:03:37]} Bxe5 {[%emt 0:03:21]} 20. fxe5 {[%emt 0:00:26]} Nd7 {[%emt 0:07:31]} 21. Qg4 {[%emt 0:03:04]} Nc5 {[%emt 0:07:43]} 22. Qxd4 {[%emt 0:08:49]} Nb3 {[%emt 0:00:23]} 23. Qe3 {[%emt 0:00:20]} Nxd2 {[%emt 0:01:22]} 24. Qxd2 {[%emt 0:01:16]} Qxe5 {[%emt 0:00:31]} 25. Re1 {[%emt 0:01:01]} Qd4+ {[%emt 0:00:17]} 26. Qe3 {[%emt 0:05:55]} Qxe3+ {[%emt 0:00:12]} 27. Rxe3 {[%emt 0:00:02]} Kf8 {[%emt 0:02:02]} 28. Re5 {[%emt 0:05:32]} a3 {[%emt 0:03:19]} 29. bxa3 {[%emt 0:00:09]} Rxa3 {[%emt 0:00:12]} 30. Rc5 {[%emt 0:00:17]} Bd7 {[%emt 0:03:42]} 31. Rc7 {[%emt 0:05:34]} Rxd3 {[%emt 0:04:21]} 32. Rxb7 {[%emt 0:03:00]} Rd1+ {[%emt 0:01:16]} 33. Kf2 {[%emt 0:00:06]} Rd2+ {[%emt 0:01:03]} 34. Kf1 {[%emt 0:04:20]} Be6 {[%emt 0:01:27]} 35. Rc7 {[%emt 0:00:11]} Rc2 {[%emt 0:01:38]} 36. c5 {[%emt 0:00:05]} Rc1+ {[%emt 0:00:17]} 37. Kf2 {[%emt 0:00:06]} Rc2+ {[%emt 0:00:07]} 38. Kg1 {[%emt 0:00:15]} g5 {[%emt 0:04:10]} 39. Be4 {[%emt 0:03:02]} Rc1+ {[%emt 0:00:00]} 40. Kf2 {[%emt 0:00:09]} h5 {[%emt 0:01:26]} 41. h4 {[%emt 0:31:29]} Rc4 {[%emt 0:06:56]} 42. Ke3 {[%emt 0:00:00]} Rc3+ {[%emt 0:03:12]} 43. Kf2 {[%emt 0:00:00]} gxh4 {[%emt 0:02:08]} 44. gxh4 {[%emt 0:00:00]} Rh3 {[%emt 0:00:39]} 45. c6 {[%emt 0:00:00]} Rxh4 {[%emt 0:00:17]} 46. Ke3 {[%emt 0:00:00]} Rg4 {[%emt 0:05:03]} 47. Rb7 {[%emt 0:08:51]} Rg1 {[%emt 0:04:48]} 48. Rb1 {[%emt 0:05:33]} Rg3+ {[%emt 0:05:16]} 49. Kd4 {[%emt 0:00:24]} Ke7 {[%emt 0:01:15]} 50. Rh1 {[%emt 0:01:35]} Rg4 {[%emt 0:01:17]} 51. Ke3 {[%emt 0:00:32]} h4 {[%emt 0:00:52]} 52. c7 {[%emt 0:00:09]} Bc8 {[%emt 0:03:21]} 53. Kf3 {[%emt 0:00:48]} f5 {[%emt 0:01:10]} 54. Bb1 {[%emt 0:00:24]} Rc4 {[%emt 0:00:31]} 55. Re1+ {[%emt 0:00:15]} Kf6 {[%emt 0:00:35]} 56. Re8 {[%emt 0:00:14]} Rxc7 {[%emt 0:00:32]} 57. Rh8 {[%emt 0:00:02]} Rc3+ {[%emt 0:00:39]} 58. Kf4 {[%emt 0:00:09]} Rc4+ {[%emt 0:00:10]} 59. Ke3 {[%emt 0:00:13]} Bd7 {[%emt 0:00:48]} 60. Bd3 {[%emt 0:00:17]} Rg4 {[%emt 0:00:25]} 61. Be2 {[%emt 0:00:31]} Re4+ {[%emt 0:00:09]} 62. Kf3 {[%emt 0:00:15]} Be6 {[%emt 0:00:31]} 63. Bd3 {[%emt 0:00:40]} Rb4 {[%emt 0:00:19]} 64. Kg2 {[%emt 0:00:32]} Bd5+ {[%emt 0:00:33]} 65. Kh2 {[%emt 0:00:45]} Rb2+ {[%emt 0:00:44]} 66. Kg1 {[%emt 0:00:02]} Rg2+ {[%emt 0:00:50]} 67. Kf1 {[%emt 0:00:02]} Rg4 {[%emt 0:00:15]} 68. Rf8+ {[%emt 0:00:42]} Bf7 {[%emt 0:00:25]} 69. Ke2 {[%emt 0:00:01]} Rg2+ {[%emt 0:00:52]} 70. Kf1 {[%emt 0:00:27]} Rg7 {[%emt 0:00:26]} 71. Rh8 {[%emt 0:00:23]} Rg4 {[%emt 0:00:20]} 72. Rf8 {[%emt 0:00:08]} Kg7 {[%emt 0:00:27]} 73. Rb8 {[%emt 0:00:11]} Rg3 {[%emt 0:00:29]} 74. Be2 {[%emt 0:01:26]} h3 {[%emt 0:00:12]} 75. Kf2 {[%emt 0:00:28]} Rg2+ {[%emt 0:00:13]} 76. Kf3 {[%emt 0:00:18]} Rxe2 {[%emt 0:00:17]} 77. Kxe2 {[%emt 0:00:14]} h2 {[%emt 0:00:06]} 78. Rb1 {[%emt 0:00:13]} Bd5 {[%emt 0:00:04]} 0-1

[Event "EICC 2025"]
[Site "Eforie-Nord"]
[Date "2025.03.17"]
[Round "3.24"]
[White "Dehtiarov, Roman"]
[Black "Lodici, Lorenzo"]
[Result "0-1"]
[Annotator "TA"]
[ECO "D36"]
[WhiteElo "2376"]
[BlackElo "2559"]
[PlyCount "92"]
[EventDate "2025.03.14"]
[EventType "swiss"]
[EventCountry "ROU"]
[SourceTitle "playchess.com"]
[Source "ChessBase"]
[SourceQuality "1"]
[TimeControl "40/5400+30:1800+30"]

{[%evp 19,92,0,0,-13,8,0,25,24,13,0,14,-71,-72,-77,23,-139,-58,-47,-55,-58,0,0,0,0,0,0,12,-104,-104,-135,-118,-114,-109,-109,-119,-125,-112,-168,-178,-170,-168,-160,-166,-183,-176,-233,-235,-237,-229,-305,-285,-275,-266,-281,-251,-254,-248,-270,-240,-269,-252,-298,-287,-586,-588,-766,-579,-1128,-1120,-1090,-1079,-1667,-1665,-1339,-1258]} 1. d4 {[%emt 0:00:05]} Nf6 {[%emt 0:01:34]} 2. c4 {[%emt 0:00:12]} e6 {[%emt 0:00:07]} 3. Nf3 {[%emt 0:00:06]} d5 {[%emt 0:04:16]} 4. cxd5 {[%emt 0:04:26]} exd5 {[%emt 0:04:04]} 5. Nc3 {[%emt 0:00:17]} c6 {[%emt 0:12:32]} 6. Qc2 {[%emt 0:02:25]} g6 {[%emt 0:02:12]} 7. Bg5 {[%emt 0:02:14]} Be7 {[%emt 0:00:03]} 8. e3 {[%emt 0:04:22]} Bf5 {[%emt 0:00:15]} 9. Bd3 {[%emt 0:00:17]} Bxd3 {[%emt 0:00:05]} 10. Qxd3 {[%emt 0:00:11]} Nbd7 {[%emt 0:00:12]} 11. h4 {[%emt 0:06:28] 11.Bh6 is setting a new trend. D36: Queen's Gambit Declined: Exchange Variation: Main line (5 Bg5 c6 6 Qc2).} Ng4 $5 {[%emt 0:03:38][%mdl 4] A promising side line.} 12. Bf4 $146 {[%emt 0:08:28]} (12. Qc2 h5 13. O-O-O O-O 14. Kb1 Nb6 15. Ka1 Kg7 16. Bf4 Bd6 17. g3 Nc4 18. Rhe1 Re8 {½-½ Pinter,J (2518)-Michalczak,T (2339) Muensterland op 21st 2003 (6)}) 12... Ndf6 {[%emt 0:02:16]} 13. Ne5 {[%emt 0:04:14] White has an edge.} Nxe5 {[%emt 0:03:09]} 14. Bxe5 {[%emt 0:00:34][%cal Oh4h5]} O-O {[%emt 0:01:35]} 15. h5 {[%emt 0:09:31]} (15. f3 $11) 15... Nxh5 $17 {[%emt 0:05:49]} (15... gxh5 $2 16. Qf5 h6 17. Rh3 $18) 16. g4 {[%emt 0:01:02]} Nf6 {[%emt 0:00:52]} (16... Ng7 $17 17. e4 f6) 17. e4 $2 {[%emt 0:01:14] A sharp opening} (17. Qf1 $1 $11) 17... Qd7 {[%emt 0:16:40]} (17... Nxg4 $2 18. Qh3 Nf6 (18... h5 $2 19. Qxg4 Bg5 20. f4 $18) 19. Bxf6 $18) ({Black should try} 17... Nxe4 $1 $17 {And now ...f6 would win.} 18. Nxe4 f6 (18... dxe4 19. Qh3 $11)) 18. Bxf6 $15 {[%emt 0:37:51]} Bxf6 {[%emt 0:00:02]} 19. Qh3 {[%emt 0:00:08][%csl Gh1][%cal Rh3h7]} Rfe8 {[%emt 0:17:14]} (19... Bxd4 20. Qxh7#) (19... h5 $15 20. e5 Be7 21. gxh5 Qxh3 22. Rxh3 f6) 20. e5 $1 $11 {[%emt 0:00:36]} h6 $36 {[%emt 0:06:40][%mdl 2048] Black is pushing.} 21. f4 $1 {[%emt 0:00:50]} Bg7 {[%emt 0:00:05]} 22. O-O-O {[%emt 0:01:38]} b5 {[%emt 0:00:18]} 23. f5 {[%emt 0:01:05] [#]} (23. Qf3 $11) 23... c5 $1 $17 {[%emt 0:02:48][%mdl 512] White is on the road to losing.} 24. f6 {[%emt 0:12:58] [#]} (24. Qf3 cxd4) 24... Bf8 {[%emt 0:00:02]} 25. Qe3 {[%emt 0:00:34] [#] and Rxh6 would now be decisive} cxd4 $1 {[%emt 0:00:05]} (25... Qxg4 $2 26. Rxh6 g5 (26... cxd4 $2 27. Rdh1 $18) 27. Rhh1 $18) 26. Qxd4 {[%emt 0:00:05]} Qc7 {[%emt 0:10:05]} 27. Kb1 {[%emt 0:01:11]} Qxe5 {[%emt 0:00:05]} 28. Nxd5 {[%emt 0:00:54]} (28. Nxb5 $17 Rab8 29. Qxe5 Rxe5 30. Nxa7) 28... Qxd4 $19 {[%emt 0:02:09]} 29. Rxd4 {[%emt 0:00:01]} Rad8 {[%emt 0:00:33]} 30. Rhd1 {[%emt 0:00:29]} Re6 {[%emt 0:00:13]} 31. a4 {[%emt 0:00:51]} bxa4 {[%emt 0:03:46]} 32. Ka2 {[%emt 0:00:23] [#]} (32. Rxa4 $142 a6 33. Ka2) 32... a3 $1 {[%emt 0:01:03]} 33. b4 {[%emt 0:00:36]} (33. bxa3 Kh7) 33... Kh7 {[%emt 0:00:35]} 34. g5 {[%emt 0:00:05]} Re2+ {[%emt 0:00:44]} 35. Kxa3 {[%emt 0:00:21]} a5 {[%emt 0:00:05]} 36. gxh6 {[%emt 0:00:43]} axb4+ {[%emt 0:00:13]} (36... Kxh6 37. Ka4 $15) 37. Kb3 {[%emt 0:00:08]} Re6 {[%emt 0:01:12]} (37... Bxh6 38. R1d3 $11) 38. Kc4 {[%emt 0:00:59]} Rc6+ {[%emt 0:00:13]} (38... Bxh6 39. Rh1 g5 40. Kxb4 $11) 39. Kb3 {[%emt 0:00:09]} Ra6 {[%emt 0:01:17]} (39... Bxh6 40. Rh4 Rxd5 41. Rxd5 $17) 40. Kc4 {[%emt 0:00:53]} Rb8 {[%emt 0:00:30][%cal Ob4b3]} (40... Bxh6 41. Rh4 g5 42. Rh2 $11) 41. R4d3 {[%emt 0:09:41]} (41. Kb3 {is a better defense.}) 41... b3 {[%emt 0:00:46] Black is clearly winning.} (41... Bxh6 42. Rh1 Rc8+ 43. Kxb4 Rb8+ 44. Kc5 Ra5+ 45. Kc6 Rc8+ 46. Kd7 $11) 42. Rb1 {[%emt 0:01:37]} b2 {[%emt 0:00:34]} (42... Kxh6 43. Rh1+ Kg5 44. Rg1+ Kf5 45. Rf1+ Kg5 46. Rg1+ Kf5 47. Rf1+ Kg5 48. Rg1+ $11) 43. Rd2 {[%emt 0:01:04]} Rc6+ {[%emt 0:00:35]} (43... Bxh6 $2 44. Rdxb2 Rc6+ 45. Kd4 $19) ({Weaker is} 43... Kxh6 44. Rh1+ Kg5 45. Rg1+ Kf5 46. Rf1+ Ke6 47. Nc7+ Ke5 48. Rd5+ Ke4 49. Nxa6 $11) 44. Kd3 {[%emt 0:00:58]} Ba3 {[%emt 0:00:03]} (44... Kxh6 45. Rbxb2 Rd8 46. Ke4 Re6+ 47. Kf3 $15) 45. Rc2 {[%emt 0:01:33]} Rd6 {[%emt 0:00:09]} 46. Ke4 {[%emt 0:00:37]} Re8+ {[%emt 0:00:04] Weighted Error Value: White=0.71/Black=0.19 (very precise)   Mistake:       	White=6     	Black=3      Inaccurate:     	White=3     	---        OK:         	White=6     	Black=12     Best:        	White=4     	Black=2      Strong:       	White=2     	Black=1      Brilliant:      	---       	Black=1} ({Not} 46... Kxh6 47. Rh2+ Kg5 48. Rg1#) 0-1

[Event "EICC 2025"]
[Site "Eforie-Nord"]
[Date "2025.03.17"]
[Round "3.24"]
[White "Pogorelskikh, Sofia"]
[Black "Suleymanli, Aydin"]
[Result "0-1"]
[Annotator "TA"]
[ECO "B48"]
[WhiteElo "2313"]
[BlackElo "2633"]
[PlyCount "114"]
[EventDate "2025.03.14"]
[EventType "swiss"]
[EventCountry "ROU"]
[SourceTitle "playchess.com"]
[Source "ChessBase"]
[SourceQuality "1"]
[TimeControl "40/5400+30:1800+30"]

{[%evp 11,114,36,41,16,35,35,37,26,39,29,25,0,0,-67,-49,-57,-53,-50,-42,-65,-60,-54,-61,-52,-59,-56,-54,-60,-63,-61,-41,-69,-17,-29,-8,-32,-37,-54,0,0,0,0,0,0,0,0,0,0,0,-8,-10,-11,-8,-20,-27,-27,-16,-12,-11,-62,-47,-70,-75,-92,-95,-101,-100,-102,-95,-101,0,-91,-89,-247,-228,-266,-245,-524,-495,-638,-579,-1122,-1107,-1097,-1058,-1060,-1016,-1090,-1079,-12849,-12430,-29961,-29960,-29955,-29962,-29958,-6444,-29968,-29970,-29970,-29971,-29971,-29972,-29971,-29972]} 1. e4 {[%emt 0:00:15]} c5 {[%emt 0:00:30]} 2. Nf3 {[%emt 0:00:13]} e6 {[%emt 0:00:07]} 3. d4 {[%emt 0:00:14]} cxd4 {[%emt 0:00:08]} 4. Nxd4 {[%emt 0:00:11]} Nc6 {[%emt 0:00:09]} 5. Nc3 {[%emt 0:00:20][%cal Bb1c3,Bc3e2,Be2d4][%mdl 32]} Qc7 {[%emt 0:00:23]} 6. Be3 {[%emt 0:00:36]} a6 {[%emt 0:00:13]} 7. Qf3 {[%emt 0:00:24] B48: Sicilian: Taimanov: 5 Nc3 Qc7 6 Be3 a6 without Be2.} b5 {[%emt 0:00:10][%cal Bb7b5,Bb5b4][%mdl 32]} 8. Nxc6 {[%emt 0:02:10]} Qxc6 {[%emt 0:00:41]} 9. Bd3 {[%emt 0:00:51] White is slightly better.} b4 {[%emt 0:00:21]} 10. Ne2 {[%emt 0:01:12]} Nf6 {[%emt 0:02:20]} 11. Nd4 {[%emt 0:11:59]} Qc7 {[%emt 0:01:07]} 12. Qg3 {[%emt 0:03:43]} (12. Bf4 $1 $11 Bd6 13. Bg3) 12... Qxg3 $15 {[%emt 0:00:30]} 13. hxg3 {[%emt 0:00:20]} Ng4 {[%emt 0:00:09]} 14. Bd2 $146 {[%emt 0:07:31]} (14. Ke2 Nxe3 15. Kxe3 Bc5 16. e5 d6 17. f4 dxe5 18. fxe5 Bb7 19. Be4 Bxd4+ 20. Kxd4 {0-1 Poljan,M (1953)-Dotzer,L (2339) Wch U14 Montesilvano 2023 (4)}) 14... Bc5 {[%emt 0:01:21]} 15. f3 {[%emt 0:08:47]} Bxd4 {[%emt 0:01:24]} 16. fxg4 {[%emt 0:00:10][%cal Oe1c1]} Bxb2 {[%emt 0:02:48][%csl Oa2,Oc2,Oe4,Og2,Og3,Og4] White has weak pawns} 17. Rb1 {[%emt 0:00:13]} Be5 {[%emt 0:00:42]} 18. Bxb4 {[%emt 0:02:20]} Bxg3+ {[%emt 0:02:15]} 19. Ke2 {[%emt 0:00:20]} Be5 {[%emt 0:04:34]} 20. g5 {[%emt 0:09:33]} d6 {[%emt 0:08:59]} 21. Bd2 {[%emt 0:10:22]} Ke7 {[%emt 0:05:01]} (21... Bd7 $15) 22. a4 $11 {[%emt 0:09:23]} a5 {[%emt 0:14:31]} 23. Rb3 {[%emt 0:05:14]} Bd4 {[%emt 0:13:52]} 24. Rhb1 {[%emt 0:05:24]} Ra7 {[%emt 0:03:55]} (24... h6 $15) 25. Rb5 {[%emt 0:07:14]} Bd7 {[%emt 0:00:41]} 26. Rb7 {[%emt 0:03:17] Threatens to win with Rxa7.} Rha8 {[%emt 0:00:11]} 27. Rxa7 {[%emt 0:00:32]} Rxa7 {[%emt 0:01:32]} 28. Bb5 {[%emt 0:00:36]} f6 {[%emt 0:06:35]} 29. Bxd7 {[%emt 0:01:22]} Kxd7 {[%emt 0:00:27]} 30. gxf6 {[%emt 0:01:15]} Bxf6 {[%emt 0:00:07][%mdl 4096] Endgame KRB-KRB. Black is a pawn up.} 31. Rb5 {[%emt 0:03:53]} Bd8 {[%emt 0:07:53]} 32. Rh5 {[%emt 0:00:30]} h6 33. Rb5 {[%emt 0:06:36] Repels Rb7} Ra8 {[%emt 0:01:00]} 34. Rb7+ {[%emt 0:00:00]} Bc7 {[%emt 0:00:40]} 35. Rb5 {[%emt 0:00:00]} (35. Rb3 $1 $11) 35... Kc6 {[%emt 0:01:07]} 36. Kd3 {[%emt 0:00:00]} e5 {[%emt 0:05:05]} 37. Be3 {[%emt 0:00:33]} h5 {[%emt 0:01:21]} 38. g3 {[%emt 0:01:00] Repels g5} Rg8 {[%emt 0:08:32]} 39. Rb1 {[%emt 0:00:26]} Rf8 {[%emt 0:00:32]} 40. Ke2 {[%emt 0:00:31]} Rg8 {[%emt 0:06:18]} 41. Kd3 $1 {[%emt 0:04:16]} Rh8 {[%emt 0:06:40]} 42. Bg5 $2 {[%emt 0:09:58] [#] Now White is beyond hope.} (42. Rb3 $17 {keeps fighting.}) 42... Rf8 $1 $19 {[%emt 0:00:50]} 43. Ke2 {[%emt 0:00:24] Repels Rf3} Bb6 {[%emt 0:04:29]} 44. Rf1 {[%emt 0:04:19] Prevents Rf2+} (44. Be3 Bxe3 45. Kxe3) 44... Rxf1 {[%emt 0:01:31]} 45. Kxf1 {[%emt 0:00:05] KB-KB. Black is a pawn up.} d5 {[%emt 0:00:48]} 46. exd5+ {[%emt 0:03:29]} Kxd5 {[%emt 0:00:04]} 47. Ke2 {[%emt 0:02:16]} e4 {[%emt 0:00:34]} 48. Bd2 {[%emt 0:02:31]} Kc4 {[%emt 0:00:14]} 49. Kf1 {[%emt 0:01:25]} e3 {[%emt 0:03:51]} 50. Be1 {[%emt 0:00:35]} g5 {[%emt 0:05:25]} 51. Ke2 {[%emt 0:00:15]} g4 {[%emt 0:00:08]} 52. Kf1 {[%emt 0:00:15]} Kd4 {[%emt 0:01:53]} 53. Ke2 {[%emt 0:00:34]} Ke4 {[%emt 0:00:34] ( -> ...Bc7)} 54. c4 {[%emt 0:00:41]} Bc7 {[%emt 0:00:18] Black mates.} 55. c5 {[%emt 0:02:35] [#]} h4 $1 {[%emt 0:00:50][%mdl 512]} 56. gxh4 {[%emt 0:05:22]} g3 {[%emt 0:00:03]} 57. h5 {[%emt 0:00:00]} g2 {[%emt 0:00:09] Weighted Error Value: White=0.44/Black=0.07 (flawless)   Mistake:       	White=4     	Black=2      Inaccurate:     	White=2     	---        OK:         	White=19    	Black=15     Best:        	---       	Black=5      Strong:       	White=1     	Black=1} 0-1

[Event "EICC 2025"]
[Site "Eforie-Nord"]
[Date "2025.03.17"]
[Round "3.25"]
[White "Velten, Paul"]
[Black "Deac, Bogdan-Daniel"]
[Result "1/2-1/2"]
[Annotator "TA"]
[ECO "E10"]
[WhiteElo "2515"]
[BlackElo "2692"]
[PlyCount "100"]
[EventDate "2025.03.14"]
[EventType "swiss"]
[EventCountry "ROU"]
[SourceTitle "playchess.com"]
[Source "ChessBase"]
[SourceQuality "1"]
[TimeControl "40/5400+30:1800+30"]

{[%evp 9,100,31,41,37,34,22,33,24,26,16,18,20,22,23,39,36,54,57,72,75,78,88,156,131,161,181,186,192,235,232,324,156,174,161,167,163,175,130,157,133,124,132,127,123,123,117,174,143,164,58,35,50,58,33,144,138,119,15,127,118,155,152,135,122,109,97,93,0,0,0,0,0,7,0,0,0,0,0,0,0,0,0,0,0,0,0,0,0,0,0,0,0,0]} 1. d4 {[%emt 0:00:14]} Nf6 {[%emt 0:00:03]} 2. c4 {[%emt 0:00:50]} e6 {[%emt 0:00:05]} 3. Nf3 {[%emt 0:00:18]} h6 {[%emt 0:06:51]} 4. Bf4 {[%emt 0:06:17]} d5 {[%emt 0:15:32]} 5. Nc3 {[%emt 0:02:51]} c5 {[%emt 0:03:25]} 6. e3 {[%emt 0:11:35]} cxd4 {[%emt 0:01:27]} 7. exd4 {[%emt 0:00:32]} Bb4 {[%emt 0:05:09]} 8. Bd3 {[%emt 1:11:53] White is slightly better.} dxc4 {[%emt 0:09:50]} 9. Bxc4 {[%emt 0:00:00]} O-O {[%emt 0:07:26]} 10. O-O {[%emt 0:00:00]} Bd7 {[%emt 0:01:06]} 11. a3 {[%emt 0:00:00]} Bxc3 {[%emt 0:02:56]} 12. bxc3 {[%emt 0:00:00]} Bc6 {[%emt 0:02:25]} 13. Ne5 {[%emt 0:00:00]} Qa5 {[%emt 0:02:16]} 14. Re1 {[%emt 0:00:00][%csl Oe5][%cal Bf1e1,Be1e5,Be5c5,Bc5c4,Bc4c7][%mdl 32] Strong Square White (e5)} Nbd7 {[%emt 0:02:08]} 15. Qc1 {[%emt 0:00:00][%cal Of4h6] A sharp opening} h5 {[%emt 0:10:13] [#]} ({Better is} 15... Nxe5 16. Rxe5 Nd5) 16. Bh6 $1 {[%emt 0:00:00][%cal Oh6g7][%mdl 512]} Ne8 {[%emt 0:05:34]} (16... Nh7 17. Nxd7) 17. Nxd7 {[%emt 0:00:00]} Bxd7 {[%emt 0:00:13]} 18. Re5 {[%emt 0:00:00]} Qa4 {[%emt 0:00:23]} 19. Be2 {[%emt 0:00:00]} f5 {[%emt 0:00:52]} 20. Bg5 {[%emt 0:00:00]} (20. Qg5 $18 {is the precise move to win.}) 20... Nf6 {[%emt 0:00:40]} 21. Bxf6 {[%emt 0:00:00]} Rxf6 {[%emt 0:00:04]} 22. Rb1 {[%emt 0:00:00]} Rb8 {[%emt 0:03:12]} 23. Rc5 {[%emt 0:00:00][%cal Ob1b4]} b6 {[%emt 0:00:32]} 24. Rc4 {[%emt 0:00:00]} Qa6 {[%emt 0:00:59]} 25. Qb2 {[%emt 0:00:08][%cal Oc4c7]} Be8 {[%emt 0:01:11]} 26. Rc7 {[%emt 0:03:34]} Qa5 {[%emt 0:06:42]} 27. Bc4 {[%emt 0:02:12] White has more active pieces.} Kh7 {[%emt 0:01:47]} (27... b5 $16 {is a better defense.} 28. Rc5 Qd8) 28. Re1 $18 {[%emt 0:01:18]} Rf7 {[%emt 0:00:54]} 29. Re5 {[%emt 0:02:05]} (29. Rxf7 $1 $18 Bxf7 30. Qb3 (30. Bxe6 Re8 $14)) 29... Qxe5 $14 {[%emt 0:00:06]} 30. dxe5 {[%emt 0:00:04]} Rxc7 {[%emt 0:00:04]} 31. Bxe6 {[%emt 0:00:03]} Re7 {[%emt 0:03:41]} (31... g6 $14) 32. Bxf5+ $16 {[%emt 0:00:16]} g6 {[%emt 0:00:02][%cal Oe7e5] [#] aiming for ...Rxe5!.} 33. Bd3 {[%emt 0:01:27]} (33. Be4 $1 $16 {Strongly threatening Qd2.} Rxe5 34. Qe2) 33... Rxe5 {[%emt 0:00:11] [#]} (33... Rd8 $1 $11 {keeps the balance.} 34. Be2 Rxe5) 34. f4 $1 {[%emt 0:00:25]} Re1+ {[%emt 0:07:25]} 35. Kf2 {[%emt 0:00:09]} Re7 {[%emt 0:00:53]} 36. Qb4 {[%emt 0:01:13]} Rbb7 {[%emt 0:00:31]} 37. f5 {[%emt 0:00:49]} gxf5 {[%emt 0:00:51]} 38. Bxf5+ {[%emt 0:00:15]} (38. g4 $16 hxg4 39. Qxg4 (39. Bxf5+ Bg6 $11)) 38... Bg6 $11 {[%emt 0:00:02] The position is equal.} 39. Bxg6+ {[%emt 0:00:07]} Kxg6 {[%emt 0:00:06][%mdl 4096] Endgame KQ-KRR} 40. Qd6+ {[%emt 0:00:06]} Kh7 {[%emt 0:01:47]} 41. Qd3+ {[%emt 0:30:12]} Kh6 {[%emt 0:30:40]} 42. Qd2+ {[%emt 0:00:10]} Kg6 $1 {[%emt 0:00:22]} 43. Qd6+ {[%emt 0:00:00]} Kh7 {[%emt 0:00:00]} 44. Qd5 {[%emt 0:00:00]} Kh6 {[%emt 0:00:00]} 45. h4 {[%emt 0:00:00]} Rg7 {[%emt 0:00:00] Prevents Qg5+.} 46. Qc6+ {[%emt 0:00:00]} Kh7 {[%emt 0:00:00]} 47. Qe4+ {[%emt 0:00:00]} Kh6 {[%emt 0:00:00]} 48. Qc6+ {[%emt 0:00:00]} Kh7 {[%emt 0:00:00]} 49. Qe4+ {[%emt 0:00:00]} Kh6 {[%emt 0:00:00]} 50. Qc6+ {[%emt 0:00:00]} Kh7 {[%emt 0:00:00] Weighted Error Value: White=0.14 (very precise) /Black=0.17 (very precise)   Missed win:     	White=1     	---        Mistake:       	White=3     	Black=4      Inaccurate:     	---       	Black=2      OK:         	White=13    	Black=15     Best:        	White=2     	Black=8      Strong:       	White=1     	Black=1} 1/2-1/2